{"text_format":"1","workbook":"xlsx","n_sheets":1,"sheets":["0113105"],"not_rendered":{"charts":0,"images":0,"macros":0,"external_links":0,"defined_names":0,"comments":0,"pivot_tables":0},"unopened":[],"bounds":{"document_bytes":16777216,"sheet_cells":100000,"rows_first":2000,"rows_last":500,"rows_between":2000,"halvings":0,"cell_chars":16384,"cell_head_chars":4096},"cells_cut":0,"cells_raw":0,"read":"whole","date_system":"1900"}

{"sheet":"0113105","index":0,"n_rows":70,"n_cols":13,"rows_kept":70,"cut":false,"hidden":false,"merged":[[69,9,69,12],[68,0,68,6],[68,9,68,12],[61,0,61,12],[62,0,62,12],[56,0,56,12],[66,9,66,12],[65,0,65,6],[43,7,44,9],[43,10,44,12],[65,9,65,12],[52,0,52,12],[43,3,45,3],[60,0,60,12],[43,2,45,2],[43,1,45,1],[43,0,45,0],[43,4,44,6],[37,1,37,10],[21,2,21,4],[21,5,21,7],[21,8,21,10],[31,5,31,7],[31,8,31,10],[29,1,29,12],[27,0,27,10],[40,1,40,12],[21,0,22,0],[21,1,22,1],[31,1,32,1],[31,2,31,4],[10,1,10,3],[13,1,13,3],[13,4,13,6],[19,1,19,12],[13,7,13,9],[0,10,1,12],[4,0,5,0],[6,0,7,0],[8,0,9,0],[10,0,11,0],[3,0,3,12],[4,4,4,12],[11,1,11,3],[2,0,2,12],[5,4,5,12],[6,4,6,12],[7,4,7,12],[8,4,8,12],[9,4,9,12]]}
[null,null,null,null,null,null,null,null,null,null,"ЗАТВЕРДЖЕНО\nНаказ Міністерства фінансів України\n26 серпня 2014 року N 836\n(у редакції наказу Міністерства фінансів України\nвід 15 листопада 2018 року N 908)"]
[]
["Звіт"]
["про виконання паспорта бюджетної програми місцевого бюджету за 2019 рік"]
["1.","О100000",null,null,"Дунаєвецька міська рада"]
[null,"(КТПКВК МБ)",null,null,"(найменування головного розпорядника)"]
["2.","О110000",null,null,"Дунаєвецька міська рада"]
[null,"(КТПКВК МБ)",null,null,"(найменування відповідального виконавця)"]
["3.","О113105",1010,null,"Надання реабілітаційних послуг особам з інвалідністю та дітям з інвалідністю"]
[null,"(КТПКВК МБ)","(КФКВК)",null,"(найменування бюджетної програми)"]
["4.","Видатки (надані кредити) за бюджетною програмою:"]
[]
[null,null,null,null,null,null,null,null,null,"(грн)"]
[null,"Затверджено у паспорті бюджетної програми",null,null,"Касові видатки (надані кредити)",null,null,"Відхилення"]
[null,"загальний фонд","спеціальний фонд","усього","загальний фонд","спеціальний фонд","усього","загальний фонд","спеціальний фонд","усього"]
[null,1,2,3,4,5,6,7,8,9]
[null,1171289,0,1171289,1142273,0,1142273,{"$f":"E17-B17","v":-29016},0,{"$f":"H17+I17","v":-29016}]
[]
[]
["5.","Напрями використання бюджетних коштів:"]
[null,null,null,null,null,null,null,null,null,null,"(грн)"]
["N\nз/п","Напрями використання  бюджетних коштів","Затверджено у паспорті бюджетної програми",null,null,"Касові видатки (надані кредити)",null,null,"Відхилення"]
[null,null,"загальний фонд","спеціальний фонд","усього","загальний фонд","спеціальний фонд","усього","загальний фонд","спеціальний фонд","усього"]
[1,2,3,4,5,6,7,8,9,10,11]
[1,"Створення належних умов для діяльності працівників\"Міськогоцентру комплексної реабілітації дітей з інвалідністю\"Ластівка\"та надання реабілітаційних послуг дітям з інвалідністю.",1010271,0,1010271,981255,0,981255,{"$f":"F25-C25","v":-29016},0,{"$f":"I25+J25","v":-29016}]
[null,"Організація харчування в центрі",161018,0,161018,161018,0,161018,{"$f":"F26-C26","v":0},0,0]
[null,"Усього",{"$f":"C25+C26","v":1171289},{"$f":"D25+D26","v":0},1171289,1142273,0,1142273,-29016,0,-29016]
["Відхилення виникло завдяки економії бюджетних коштів по енергоносіях (теплопостачання) в зв`язку з погодніми умовами"]
[]
["6.","Видатки (надані кредити) на реалізацію місцевих/регіональних програм, які виконуються в межах бюджетної програми:"]
[null,null,null,null,null,null,null,null,null,null,"(грн)"]
[null,"Найменування місцевої / регіональної програми","Затверджено у паспорті бюджетної програми",null,null,"Касові видатки (надані кредити)",null,null,"Відхилення"]
[null,null,"загальний фонд","спеціальний фонд","усього","загальний фонд","спеціальний фонд","усього","загальний фонд","спеціальний фонд","усього"]
[null,1,2,3,4,5,6,7,8,9,10]
[]
[]
[null,"Усього"]
[null,"Пояснення щодо причин відхилення між касовими видатками (наданими кредитами) та затвердженими у паспорті бюджетної програми"]
[]
[]
["7.","Результативні показники бюджетної програми та аналіз їх виконання:"]
[]
[]
["N\n з/п","Показники","Одиниця виміру","Джерело інформації","Затверджено у паспорті бюджетної програми",null,null,"Фактичні результативні показники, досягнуті за рахунок касових видатків (наданих кредитів)",null,null,"Відхилення"]
[]
[null,null,null,null,"загальний фонд","спеціальний фонд","усього","загальний фонд","спеціальний фонд","усього","загальний фонд","спеціальний фонд","усього"]
[1,2,3,4,5,6,7,8,9,10,11,12,13]
[1,"затрат"]
[null,"кількість установ для осіб з інвалідністю та дітей з інвалідністю ","од.","мережа",1,0,1,1,0,1,0,0,0]
[null,"кількість штатних одиниць","од.","звіт,штатний розпис",9.75,0,9.75,9.75,0,9.75,0,0,0]
[2,"продукту"]
[null,"кількість осіб з інвалідністю та дітей з інвалідністю,які отримали реабілітаційні послуги","осіб","звіт,штатний розпис",39,0,39,40,0,40,{"$f":"H52-E52","v":1},0,{"$f":"K52","v":1}]
["Відхилення виникло за рахунок збільшення дітей з інвалідністю, які отримали реабілітаційні послуги на кінець звітного року"]
[3,"ефективності"]
[null,"середні витрати на реабілітацію одної особи з інвалідністю та дитини з інвалідністю на рік ","грн","розрахунок",{"$f":"B17/E52","v":30033.051282051281},null,{"$f":"D17/G52","v":30033.051282051281},{"$f":"E17/H52","v":28556.825000000001},null,{"$f":"G17/J52","v":28556.825000000001},{"$f":"H55-E55","v":-1476.2262820512806},0,{"$f":"K55+L55","v":-1476.2262820512806}]
[null,"кількість дітей з інвалідністю,які інтегровані в дошкільні ,загальноосвітні навчальні заклади","од","розрахунок",19,0,19,19,0,19,0,0,0]
["Відхилення виникло завдяки економії бюджетних коштів по енергоносіях (теплопостачання) в зв`язку з погодніми умовами"]
[4,"якості"]
[null,"відсоток охоплення осіб з інвалідністюта дітей з інвалідністю реабілітаційними послугами","%","звіт",100,0,100,100,0,100,0,0,0]
[null,"частка дітей з інвалідністю ,які інтегровані в дошкільні,загальноосвітні навчальні заклади до загальної їх чисельності","%","звіт",49,0,49,49,0,49,0,0,0]
[]
["Аналіз стану виконання результативних показників"]
["Протягом  2019 року в КУ «МЦКРДІ «Ластівка» пройшли курс реабілітації  40 дітей  з інвалідністю, віком від  2-х до 18-ти років. Реабілітаційні послуги діти отримували в групах: ранньої соціальної реабілітації – 12 дітей (діти дошкільного віку до 7-ми років); соціальної реабілітації - 18 дітей (від 7-ми до 14-ти років); професійної орієнтації – 10 дітей ( від 14-ти до 18-ти років), в умовах соціальної послуги денного догляду (19  дітей), амбулаторного перебування - 14 дітей та патронажної допомоги - 7 дітей. З них 26 дітей – жителі міста, 14 дітей – жителі сільської  місцевості. У центрі обслуговуються діти з діагнозом ДЦП, хвороба Дауна, дитячий аутизм, нейросенсорна приглухуватість, розумова відсталість. Спеціалісти центру надають дітям з обмеженими можливостями послуги комплексної реабілітації, а саме:  педагогічної, соціальної, психологічної, фізичної реабілітації, професійної орієнтації, проводиться медичне спостереження. Щорічно кількість отримувачів реабілітаційних послуг зростає (2016 – 28 дітей, 2017-30 дітей, 2018- 34 дитини, 2019 – 40 дітей)."]
[]
[]
["Міський голова",null,null,null,null,null,null,null,null,"В.В.Заяць"]
[null,null,null,null,null,null,null,"(підпис)",null,"(ініціали та прізвище)"]
[]
["Головний бухгалтер ",null,null,null,null,null,null,null,null,"О.П.Рищенко"]
[null,null,null,null,null,null,null,"(підпис)",null,"(ініціали та прізвище)"]